Cogmind - Beta 13 @@@ ROGUE MODE // 2024.04.03 @ 21:21:06 Player: ConfusedWizard Result: Self-destructed Performance ------------- Evolutions (1) 500 Regions Visited (2) 400 Robots Destroyed (19) 95 Value Destroyed (536) 536 Prototype IDs (1) 20 Alien Tech Used (0) 0 Bonus (0) 0 TOTAL SCORE: 1551 Bonus ------- None Cogmind --------- Core Integrity 171/400 Matter 300/300 Energy 265/265 System Corruption 0% Temperature Cool (0) Movement Core (550) Ox10 Location -9/Materials Parts ------- > --- POWER (1) -------- Improved Ion Engine > --- PROPULSION (4) --- (None) > --- UTILITY (2) ------ Large Storage Unit > --- WEAPON (2) ------- Advanced Beam Cannon > --- INVENTORY (15) --- Ion Engine Improved Ion Engine Improved Ion Engine Improved Ion Engine Medium Storage Unit High-capacity Matter Pod (167) Light Armor Plating Beam Rifle Advanced Beam Cannon Peak State ------------ > --- POWER ------------ Improved Ion Engine > --- PROPULSION ------- Aluminum Leg Aluminum Leg Aluminum Leg Aluminum Leg > --- UTILITY ---------- Heat Sink Medium Storage Unit > --- WEAPON ----------- Advanced Beam Cannon Advanced Beam Cannon > --- INVENTORY -------- Ion Engine Improved Ion Engine Improved Ion Engine Improved Ion Engine Aluminum Leg Large Storage Unit High-capacity Matter Pod Advanced Beam Cannon [Rating: 15] Favorites ----------- Power Improved Ion Engine Engine Improved Ion Engine Propulsion Aluminum Leg Leg Aluminum Leg Utility Heat Sink Device Heat Sink Storage Medium Storage Unit Weapon Advanced Beam Cannon Energy Cannon Advanced Beam Cannon Ballistic Gun Light Assault Rifle Build | -11 -10 -9 ------- Run | Yrd Mat Mat Slots Evolved 2 | . . 2 Power . | . . . Propulsion 2 | . . 2 Utility . | . . . Weapon . | . . . Parts Attached 17 | 6 6 5 Power 3 | 1 1 1 Engine 3 | 1 1 1 Core . | . . . Reactor . | . . . Propulsion 5 | 2 . 3 Treads . | . . . Leg 5 | 2 . 3 Wheel . | . . . Hover . | . . . Flight . | . . . Utility 5 | 1 3 1 Device 1 | . 1 . Storage 4 | 1 2 1 Processor . | . . . Hackware . | . . . Protection . | . . . Artifact . | . . . Weapon 4 | 2 2 . Energy Gun . | . . . Energy Cannon 2 | . 2 . Ballistic Gun 2 | 2 . . Ballistic Cannon . | . . . Launcher . | . . . Special Weapon . | . . . Impact Weapon . | . . . Slashing Weapon . | . . . Piercing Weapon . | . . . Special Melee Weapon . | . . . Unidentified Prototypes 1 | . 1 . Parts Lost 8 | . 1 7 Power . | . . . Propulsion 5 | . . 5 Utility 1 | . . 1 Weapon 2 | . 1 1 Highest Loss Streak 7 | . 1 7 To Critical Strikes . | . . . Average Slot Usage (%) 93 | . 93 94 Engine 13 | . 14 11 Leg 31 | . 28 39 Device 8 | . 7 10 Storage 13 | . 14 11 Energy Cannon 24 | . 26 21 Ballistic Gun 1 | . 1 . Naked Turns . | . . . Heaviest Build 36 | 13 26 36 Greatest Support 40 | 20 20 40 Greatest Overweight (x) 10 | . 1 10 Average Overweight (x) . | . . . Largest Inventory Capacity 15 | 8 10 15 Average Capacity 10 | 7 9 14 Most Carried 10 | 2 10 10 Average Carried 7 | . 7 9 Final Capacity 15 | 8 10 15 Final Carried 10 | . 10 9 Class Distribution -------------------- 100% | Mutant Dominant Class ---------------- Mutant | -10/Materials Mutant | -9/Materials Resources | -11 -10 -9 ----------- Run | Yrd Mat Mat Matter Collected 524 | 272 232 20 Remotely . | . . . Salvage Created 717 | 94 335 288 Parts 41 | 2 22 17 Haulers Intercepted . | . . . Recyclers Shooed . | . . . Parts Field Recycled . | . . . Retrieved Matter . | . . . Parts Self-Destructed . | . . . Prevented . | . . . Kills | -11 -10 -9 ------- Run | Yrd Mat Mat Combat Hostiles Destroyed 14 | . 7 7 Cannons 14 | . 7 7 Classes Destroyed 6 | 1 3 2 Worker 2 | . 1 1 Recycler 1 | 1 . . Watcher 2 | . 2 . Swarmer 2 | . . 2 Grunt 10 | . 7 3 Sentry 2 | . . 2 Best Kill Streak 4 | 1 2 4 Combat Bots Only 4 | . 2 4 Max Kills in Single Turn 1 | 1 1 1 Gunslinging . | . . . Exploded . | . . . Melee . | . . . Uniques/NPCs Destroyed . | . . . Combat | -11 -10 -9 -------- Run | Yrd Mat Mat Hostile Shots Fired 122 | . 32 90 Missed 32 | . 9 23 Damage Taken 1114 | . 281 833 Core 286 | . 57 229 Absorbed by Shields . | . . . Core Remaining (%) 88 | 100 77 . Volleys Fired 44 | 3 22 19 Largest 2 | 2 2 2 Hottest 136 | 40 136 136 Shots Fired 86 | 6 44 36 Gun 8 | 6 2 . Cannon 78 | . 42 36 Launcher . | . . . Special . | . . . Kinetic 8 | 6 2 . Thermal 78 | . 42 36 Explosive . | . . . Electromagnetic . | . . . Robot Hit Streak 5 | 3 5 5 Robot Miss Streak 3 | 1 2 3 Penetration Max . | . . . Secondary Targets . | . . . Shots Hit Robots 43 | 4 24 15 Core Hits 23 | 2 13 8 Critical Kills . | . . . Critical Parts Destroyed . | . . . Critical Strikes . | . . . Melee Attacks . | . . . Impact . | . . . Slashing . | . . . Piercing . | . . . Sneak Attacks . | . . . Combat Hostiles . | . . . Follow-up Attacks . | . . . Damage Inflicted 939 | 49 542 348 Guns 49 | 49 . . Cannons 876 | . 528 348 Explosions . | . . . Melee . | . . . Ramming 14 | . 14 . Kinetic 49 | 49 . . Thermal 876 | . 528 348 Explosive . | . . . Electromagnetic . | . . . Impact . | . . . Slashing . | . . . Piercing . | . . . Highest Corruption . | . . . Average Corruption . | . . . Corruption Purged . | . . . Corruption Blocked . | . . . Overload Shots . | . . . Overflow Damage . | . . . Projectiles . | . . . Explosions . | . . . Melee . | . . . Knockbacks . | . . . Impact . | . . . Kinetic . | . . . Secondary . | . . . Self-Inflicted Damage . | . . . Shots . | . . . Rammed . | . . . Targets Rammed 2 | . 2 . Kicked 2 | . 2 . Crushed . | . . . Highest Temperature 360 | . 360 334 Average Temperature 124 | . 134 108 Received Heat Transfer 360 | . 174 186 Siege Activations . | . . . Robots Corrupted . | . . . Combat Hostiles . | . . . Parts Fried . | . . . Impact Corruptions . | . . . Robots Melted . | . . . Combat Hostiles . | . . . Parts Melted 4 | . 3 1 Heat Transferred 1591 | . 962 629 Parts Sabotaged . | . . . Parts Stolen . | . . . Parts Stripped . | . . . Power Chain Reactions . | . . . Alert | -11 -10 -9 ------- Run | Yrd Mat Mat Peak Influence 208 | 5 142 208 Initial 38 | . 3 38 Average 58 | 2 44 111 Maximum Alert Level 1 | . . 1 Low Security (%) 99 | 100 100 97 Level 1 . | . . 2 Level 2 . | . . . Level 3 . | . . . Level 4 . | . . . Level 5 . | . . . High Security . | . . . Max Security . | . . . Squads Dispatched 2 | . 1 1 Investigation . | . . . Extermination . | . . . Reinforcement 2 | . 1 1 Assault . | . . . Garrison . | . . . Intercept . | . . . Searches Triggered . | . . . Construction Impeded . | . . . Haulers Reinforced . | . . . Active Scanning Responses . | . . . Cargo Convoy Interrupts . | . . . Stealth | -11 -10 -9 --------- Run | Yrd Mat Mat Distress Signals 1 | . . 1 Communications Jammed . | . . . Distress Signals . | . . . Times Spotted 21 | . 10 11 Peak Tracking Total 5 | . 2 5 Tactical Retreats . | . . . Traps | -11 -10 -9 ------- Run | Yrd Mat Mat Traps Triggered . | . . . Indirectly . | . . . Trap Hack Attempts . | . . . Triggered . | . . . Disarmed . | . . . Reprogrammed . | . . . Reused . | . . . Traps Extracted . | . . . Installed . | . . . Triggered . | . . . Machines | -11 -10 -9 ---------- Run | Yrd Mat Mat Machines Disabled 2 | . 1 1 Max in Single Turn 1 | . 1 1 Machines Repaired . | . . . Machines Dismantled . | . . . Machines Sabotaged . | . . . Overloaded Fab Kills . | . . . Hacking | -11 -10 -9 --------- Run | Yrd Mat Mat Machines Accessed 1 | . . 1 Terminals 1 | . . 1 Fabricators . | . . . Repair Stations . | . . . Recycling Units . | . . . Scanalyzers . | . . . Garrison Access . | . . . Total Hacks 4 | . . 4 Successful 3 | . . 3 Failed 1 | . . 1 Catastrophic . | . . . Database Lockouts . | . . . Manual . | . . . Terminals 4 | . . 4 Fabricators . | . . . Repair Stations . | . . . Recycling Units . | . . . Scanalyzers . | . . . Garrison Access . | . . . Terminal Hacks 3 | . . 3 Emergency Access Points 1 | . . 1 Alert Level 1 | . . 1 Zone Layout 1 | . . 1 Fabricator Hacks . | . . . Repair Station Hacks . | . . . Recycling Unit Hacks . | . . . Scanalyzer . | . . . Garrison Access Hacks . | . . . Unauthorized Hacks . | . . . Terminals . | . . . Fabricators . | . . . Repair Stations . | . . . Recycling Units . | . . . Scanalyzers . | . . . Garrison Access . | . . . Data Cores Recovered . | . . . Used . | . . . Hacking Detections 1 | . . 1 Full Trace Events . | . . . Feedback Events . | . . . Feedback Blocked . | . . . Robot Schematics Acquired . | . . . Robots Built . | . . . Authchips . | . . . Time . | . . . Total Robot Build Rating . | . . . Part Schematics Acquired . | . . . Parts Built . | . . . Authchips . | . . . Time . | . . . Total Part Build Rating . | . . . Parts Repaired . | . . . Time . | . . . Parts Recycled . | . . . Recycled Matter . | . . . Retrieved Matter . | . . . Retrieved Components . | . . . Parts Scanalyzed . | . . . Part Schematics Acquired . | . . . Parts Damaged . | . . . Bothacking | -11 -10 -9 ------------ Run | Yrd Mat Mat Used RIF Installer . | . . . Robots Hacked . | . . . Non-combat . | . . . Combat . | . . . Robot Hacks Applied . | . . . Relay Couplers Released . | . . . Fabnet Peak Effective % . | . . . Robots Rewired . | . . . Allies Hacked . | . . . Hacks Repelled . | . . . Allies | -11 -10 -9 -------- Run | Yrd Mat Mat Total Allies . | . . . Largest Group . | . . . Highest-Rated Group . | . . . Highest-Rated Ally . | . . . Total Orders . | . . . Ally Attacks . | . . . Total Damage . | . . . Kills . | . . . Allies Corrupted . | . . . Allies Melted . | . . . Intel | -11 -10 -9 ------- Run | Yrd Mat Mat Robot Analysis Total . | . . . Derelict Logs Recovered . | . . . Drone Launches . | . . . Drone Recoveries . | . . . Exploration | -11 -10 -9 ------------- Run | Yrd Mat Mat Turns Passed 881 | 73 580 228 Spaces Moved 472 | 47 299 126 Core 6 | 5 . 1 Treads . | . . . Legs 466 | 42 299 125 Wheels . | . . . Hover . | . . . Flight . | . . . Fastest Speed 50 | 50 120 120 Average Speed 145 | 112 158 127 Slowest Speed 550 | 120 190 550 Overloaded Moves . | . . . Propulsion Burnouts . | . . . Robots Hopped . | . . . Cave-ins Triggered . | . . . Exploration Rate (%) 27 | 4 59 20 Regions Visited 2 Branch Regions . Pre-discovered Areas . | . . . Known Exits Taken . | . . . Unknown Exits Taken 2 | 1 1 . Scrap Searched . | . . . Spaces Dug . | . . . Terrain Destroyed . | . . . Melee . | . . . Projectile . | . . . AOE . | . . . Terrain Rammed . | . . . Walls Destroyed . | . . . Machines Disabled . | . . . Actions | -11 -10 -9 --------- Run | Yrd Mat Mat Total 576 | 61 360 155 Wait 14 | . 11 3 Move 470 | 46 298 126 Hop . | . . . Pick Up 24 | 6 16 2 Fast Attach . | . . . Attach 12 | 6 3 3 Detach . | . . . Swap 6 | . 4 2 Drop 4 | . 4 . Fire 44 | 3 22 19 Melee . | . . . Ram . | . . . Kick 2 | . 2 . Crush . | . . . Escape Stasis . | . . . Rewire . | . . . Trap . | . . . Miscellaneous . | . . . Route ------- -11/Scrapyard -10/Materials -9/Materials History --------- Turn | Location | Event 3 | -11/Scrapyard | Discovered new exit (range 15) 74 | -11/Scrapyard | Entered Materials 303 | -10/Materials | Build established: Mutant 408 | -10/Materials | Discovered new exit (range 15) 654 | -10/Materials | Entered another Materials area 654 | -9/Materials | Evolved 2 slots: Propulsion x2 879 | -9/Materials | Core integrity fell below 50% 882 | -9/Materials | Self-destructed Last Messages --------------- Fusion Modulator explodes. Recycling Unit disabled. Imp. Light Cannon tumbles out of recycling unit. Aluminum Leg destroyed. Particle Gun tumbles out of recycling unit. S-10 Pest destroyed. G-34 Mercenary destroyed. T-07 Excavator destroyed. K-01 Serf collects debris. Critical hit (Burn: +37). G-34 Mercenary destroyed. Aluminum Leg destroyed. Adv. Beam Cannon destroyed. Aluminum Leg destroyed. S-10 Pest destroyed. U-05 Engineer builds a Wall. Aluminum Leg destroyed. Heat Sink destroyed. Acquired 20 matter. U-05 Engineer builds a Wall. Map ----- +----------------------------------------------------+ | ?????????????????????????????????????????????????? | | ?????????????????????????????????????????????????? | | ?????????????????????????????????????????????????? | | ?????????????????????????????????????????????????? | | ?????????????????????????????????????????????????? | | ?????????????????????????????????????????????????? | | ?????????????????????????????????????????????????? | | ?????????????????????????????????????????? ????? | | ?????????????????????????????????????????" ????? | | ?????????????????????????????????????????# ????? | | ?????????????????????????????????????????# #???? | | ?????????????????????????????????????????# #???? | | ????????????????????????????###?? ??????+ ##### | | ????????????????????????????= +? ??????# ## | | ????????????????????##?#####%## # ## | | ????????????????????#Y##;;;;=## # ##! " | | ????????????????????# %= # # ## " | | ????????????????????# = ############ ## " | | ????????????????????# s ;########### ## | | ????????????????????# ; ##/# | | ????????????????????#*/= ; | | ????????????????????#*/= ] ; | | ????????????????????#* [=; ] | | ????????????????????# =%;! | | ????????????????????##;;;!;;;;=% """" """" | | ?????????????????????# %@=#"##[ """"" """" | | ?????????????????????# !| """" """" | | ?????????????????????+ %= | | ?????????????????????# [ | | ?????????????????????# ## #######"T"###"Y"## | | ?????????????????????####### ????#"""#?#"""## | | ???????????????????????????## #???#####?###### | | ????????????????????????????### #??????????????# | | ????????????????????????????????#??????????????# | | ?????????????????????????????????????????????### | | ?????????????????????????????????????????????# | | ?????????????????????????????????????????????# | | ?????????????????????????????????????????????# | | ?????????????????????????????????????????????# | | ?????????????????????????????????????????????# | | ?????????????????????????????????##############= | | ?????????????????????????????????# T #%[ | | ?????????????????????????????????# #* | | ?????????????????????????????????# + | | ?????????????????????????????????# #^ | | ??????????????????????????????????????????????# | | ??????????????????????????????????????????????#!% | | ??????????????????????????????????????????######+# | | ??????????????????????????????????????????# = | | ??????????????????????????????????????????# | +----------------------------------------------------+ Best States ------------- Heat Dissipation 38 Energy Generation 12 Energy Capacity 265 Matter Stores 300 Matter Capacity 300 Sight Range 16 Terrain Scan Density 10 Evasion (%) 55 Item Schematics ----------------- None Robot Schematics ------------------ None Fabricated ------------ Nothing Alien Tech Used ----------------- None Achievements -------------- None Challenges ------------ None Game ------ Seed SlugNuclearThruster Manual? 0 Play Time 00:09:56 Cumulative 1.2 hours Start 2024.04.03 @ 21:10:30 End 2024.04.03 @ 21:21:06 Sessions 1 Manual Loads 0 Difficulty Rogue Special Mode None Game No. 7 Rogue 7 Adventurer 0 Explorer 0 Win Type - Total 0 Types 0/0/0/0/0/0/0/0/0 Lore% 2 Gallery% 5 Achievement% 4 Wizard Run 0 Options --------- Layout 1 ASCII 0 Keyboard 0 Movement Mouse Keybinds 0 Fullscreen 1 Font 32/SmallcapsGlow Map View 50x35 Zoom Use 0% Tactical HUD 0 Map Filters NONE Filters NONE Steam 1 RUN: 1aace7b5-464b-4371-b9ce-37e35d65febc